[Event "Snabb-SM för veteraner, 65+ 2019"]
[Site "Schackcentrum, Vegagatan 20, Gothenburg, Sweden"]
[Date "2019.10.06"]
[Round "8.6"]
[White "Degerfeldt, Sven"]
[Black "Landin, Bo"]
[Result "1/2-1/2"]
[TimeControl "15 minutes + 10 seconds per move from move one"]
[WhiteFideId "1717430"]
[BlackFideId "1705261"]
[WhiteElo "1822"]
[BlackElo "1959"]

1. d4 {[%clk 00:15:16]} {[%emt 00:00:03]} e6 {[%clk 00:15:18]} {[%emt
00:00:03]} 2. Nf3 {[%clk 00:15:01]} {[%emt 00:00:24]} d5 {[%clk 00:15:26]}
{[%emt 00:00:02]} 3. e3 {[%clk 00:14:12]} {[%emt 00:00:58]} Nf6 {[%clk
00:15:32]} {[%emt 00:00:05]} 4. c4 {[%clk 00:14:06]} {[%emt 00:00:16]} c6
{[%clk 00:15:12]} {[%emt 00:00:31]} 5. Nc3 {[%clk 00:14:05]} {[%emt 00:00:10]}
Nbd7 {[%clk 00:15:17]} {[%emt 00:00:05]} 6. a4 {[%clk 00:13:27]} {[%emt
00:00:47]} Bd6 {[%clk 00:14:18]} {[%emt 00:01:10]} 7. Bd3 {[%clk 00:13:03]}
{[%emt 00:00:33]} O-O {[%clk 00:13:38]} {[%emt 00:00:51]} 8. O-O {[%clk
00:12:41]} {[%emt 00:00:32]} Re8 {[%clk 00:13:15]} {[%emt 00:00:33]} 9. Qc2
{[%clk 00:11:02]} {[%emt 00:01:49]} dxc4 {[%clk 00:11:05]} {[%emt 00:02:21]} 10.
Bxc4 {[%clk 00:11:00]} {[%emt 00:00:10]} Nb6 {[%clk 00:10:58]} {[%emt
00:00:18]} 11. Be2 {[%clk 00:09:58]} {[%emt 00:01:12]} Nbd5 {[%clk 00:10:30]}
{[%emt 00:00:39]} 12. Bd2 {[%clk 00:07:59]} {[%emt 00:02:09]} Nb4 {[%clk
00:08:03]} {[%emt 00:02:37]} 13. Qb1 {[%clk 00:07:35]} {[%emt 00:00:34]} c5
{[%clk 00:08:10]} {[%emt 00:00:03]} 14. Nb5 {[%clk 00:07:28]} {[%emt 00:00:17]}
cxd4 {[%clk 00:06:13]} {[%emt 00:02:07]} 15. Nxd6 {[%clk 00:07:06]} {[%emt
00:00:32]} Qxd6 {[%clk 00:06:15]} {[%emt 00:00:09]} 16. Nxd4 {[%clk 00:05:33]}
{[%emt 00:01:43]} a6 {[%clk 00:06:15]} {[%emt 00:00:10]} 17. Rd1 {[%clk
00:05:04]} {[%emt 00:00:38]} e5 {[%clk 00:05:11]} {[%emt 00:01:14]} 18. Nf3
{[%clk 00:04:10]} {[%emt 00:01:04]} Qe7 {[%clk 00:03:35]} {[%emt 00:01:46]} 19.
Bc3 {[%clk 00:04:03]} {[%emt 00:00:16]} e4 {[%clk 00:03:29]} {[%emt 00:00:16]}
20. Nd4 {[%clk 00:03:59]} {[%emt 00:00:13]} Nbd5 {[%clk 00:03:25]} {[%emt
00:00:15]} 21. Be1 {[%clk 00:03:59]} {[%emt 00:00:10]} Bd7 {[%clk 00:03:09]}
{[%emt 00:00:26]} 22. b3 {[%clk 00:03:51]} {[%emt 00:00:17]} Rec8 {[%clk
00:03:08]} {[%emt 00:00:12]} 23. Qb2 {[%clk 00:03:53]} {[%emt 00:00:08]} Rc7
{[%clk 00:03:10]} {[%emt 00:00:09]} 24. Rac1 {[%clk 00:03:37]} {[%emt
00:00:25]} Rac8 {[%clk 00:03:19]} {[%emt 00:00:01]} 25. Ba5 {[%clk 00:03:17]}
{[%emt 00:00:29]} Rxc1 {[%clk 00:03:17]} {[%emt 00:00:12]} 26. Rxc1 {[%clk
00:03:25]} {[%emt 00:00:02]} Rxc1+ {[%clk 00:03:22]} {[%emt 00:00:05]} 27. Qxc1
{[%clk 00:03:32]} {[%emt 00:00:02]} g6 {[%clk 00:03:26]} {[%emt 00:00:07]} 28.
Bc4 {[%clk 00:03:19]} {[%emt 00:00:22]} Qd6 {[%clk 00:02:42]} {[%emt 00:00:55]}
29. h3 {[%clk 00:03:05]} {[%emt 00:00:23]} Kg7 {[%clk 00:02:44]} {[%emt
00:00:08]} 30. Bd2 {[%clk 00:03:03]} {[%emt 00:00:12]} Qb6 {[%clk 00:02:33]}
{[%emt 00:00:22]} 31. Be2 {[%clk 00:02:22]} {[%emt 00:00:50]} Ne7 {[%clk
00:02:30]} {[%emt 00:00:13]} 32. a5 {[%clk 00:02:19]} {[%emt 00:00:13]} Qd6
{[%clk 00:02:30]} {[%emt 00:00:10]} 33. Bc3 {[%clk 00:02:06]} {[%emt 00:00:22]}
Nfd5 {[%clk 00:02:30]} {[%emt 00:00:11]} 34. Bb2 {[%clk 00:02:09]} {[%emt
00:00:07]} Kg8 {[%clk 00:02:22]} {[%emt 00:00:18]} 35. Qc2 {[%clk 00:01:50]}
{[%emt 00:00:29]} Nf6 {[%clk 00:01:58]} {[%emt 00:00:34]} 36. Bc4 {[%clk
00:01:47]} {[%emt 00:00:13]} Ned5 {[%clk 00:01:32]} {[%emt 00:00:36]} 37. Ne2
{[%clk 00:01:41]} {[%emt 00:00:15]} Qb4 {[%clk 00:01:19]} {[%emt 00:00:23]} 38.
Nc3 {[%clk 00:01:12]} {[%emt 00:00:39]} Bc6 {[%clk 00:00:59]} {[%emt 00:00:32]}
39. Kh2 {[%clk 00:00:53]} {[%emt 00:00:28]} Qd6+ {[%clk 00:01:07]} {[%emt
00:00:02]} 40. g3 {[%clk 00:01:02]} {[%emt 00:00:01]} Kf8 {[%clk 00:00:43]}
{[%emt 00:00:34]} 41. Bxd5 {[%clk 00:00:43]} {[%emt 00:00:28]} Bxd5 {[%clk
00:00:39]} {[%emt 00:00:15]} 42. Nxd5 {[%clk 00:00:46]} {[%emt 00:00:07]} Nxd5
{[%clk 00:00:46]} {[%emt 00:00:04]} 43. Qxe4 {[%clk 00:00:37]} {[%emt
00:00:18]} Ne7 {[%clk 00:00:47]} {[%emt 00:00:09]} 44. Qxb7 {[%clk 00:00:31]}
{[%emt 00:00:17]} f5 {[%clk 00:00:43]} {[%emt 00:00:14]} 45. Qa8+ {[%clk
00:00:32]} {[%emt 00:00:09]} Kf7 {[%clk 00:00:49]} {[%emt 00:00:04]} 46. Bd4
{[%clk 00:00:34]} {[%emt 00:00:08]} Qc7 {[%clk 00:00:52]} {[%emt 00:00:08]} 47.
Qh8 {[%clk 00:00:29]} {[%emt 00:00:15]} Qc2 {[%clk 00:00:55]} {[%emt 00:00:07]}
48. Qg7+ {[%clk 00:00:31]} {[%emt 00:00:07]} Ke6 {[%clk 00:01:03]} {[%emt
00:00:02]} 49. Qf6+ {[%clk 00:00:38]} {[%emt 00:00:03]} Kd7 {[%clk 00:01:12]}
{[%emt 00:00:02]} 50. Kg2 {[%clk 00:00:11]} {[%emt 00:00:36]} Qe4+ {[%clk
00:01:19]} {[%emt 00:00:03]} 51. Kf1 {[%clk 00:00:19]} {[%emt 00:00:03]} Qb1+
{[%clk 00:01:27]} {[%emt 00:00:02]} 52. Ke2 {[%clk 00:00:25]} {[%emt 00:00:04]}
Qc2+ {[%clk 00:01:35]} {[%emt 00:00:02]} 53. Kf3 {[%clk 00:00:34]} Qe4+ {[%clk
00:01:44]} {[%emt 00:00:03]} 54. Ke2 {[%clk 00:00:42]} {[%emt 00:00:01]} Qc2+
{[%clk 00:01:53]} 1/2-1/2

[Event "Snabb-SM för veteraner, 65+ 2019"]
[Site "Schackcentrum, Vegagatan 20, Gothenburg, Sweden"]
[Date "2019.10.06"]
[Round "8.7"]
[White "Olesen, Christer"]
[Black "Franzen, Thomas"]
[Result "0-1"]
[TimeControl "15 minutes + 10 seconds per move from move one"]
[WhiteFideId "1739069"]
[BlackFideId "1706039"]
[WhiteElo "1809"]
[BlackElo "1860"]

1. d4 {[%clk 00:15:16]} {[%emt 00:00:03]} f5 {[%clk 00:15:16]} {[%emt
00:00:05]} 2. Bf4 {[%clk 00:15:14]} {[%emt 00:00:10]} Nf6 {[%clk 00:15:18]}
{[%emt 00:00:09]} 3. e3 {[%clk 00:15:15]} {[%emt 00:00:09]} d6 {[%clk
00:15:21]} {[%emt 00:00:08]} 4. h3 {[%clk 00:14:58]} {[%emt 00:00:25]} g6
{[%clk 00:15:21]} {[%emt 00:00:11]} 5. Nf3 {[%clk 00:14:53]} {[%emt 00:00:15]}
Bg7 {[%clk 00:15:29]} {[%emt 00:00:02]} 6. c4 {[%clk 00:14:24]} {[%emt
00:00:39]} Nbd7 {[%clk 00:15:22]} {[%emt 00:00:17]} 7. Nc3 {[%clk 00:14:09]}
{[%emt 00:00:26]} h6 {[%clk 00:15:23]} {[%emt 00:00:10]} 8. Be2 {[%clk
00:14:04]} {[%emt 00:00:14]} O-O {[%clk 00:15:25]} {[%emt 00:00:08]} 9. O-O
{[%clk 00:14:03]} {[%emt 00:00:10]} Kh7 {[%clk 00:15:22]} {[%emt 00:00:14]} 10.
Qc2 {[%clk 00:13:37]} {[%emt 00:00:36]} c6 {[%clk 00:14:27]} {[%emt 00:01:05]}
11. Bh2 {[%clk 00:13:38]} {[%emt 00:00:08]} Qe8 {[%clk 00:14:21]} {[%emt
00:00:17]} 12. e4 {[%clk 00:13:23]} {[%emt 00:00:24]} fxe4 {[%clk 00:13:21]}
{[%emt 00:01:10]} 13. Nxe4 {[%clk 00:13:30]} {[%emt 00:00:02]} Nxe4 {[%clk
00:13:28]} {[%emt 00:00:03]} 14. Qxe4 {[%clk 00:13:38]} {[%emt 00:00:02]} Nf6
{[%clk 00:13:36]} {[%emt 00:00:03]} 15. Qc2 {[%clk 00:13:16]} {[%emt 00:00:31]}
Bf5 {[%clk 00:09:59]} {[%emt 00:03:48]} 16. Bd3 {[%clk 00:13:18]} {[%emt
00:00:08]} Bxd3 {[%clk 00:09:16]} {[%emt 00:00:54]} 17. Qxd3 {[%clk 00:13:26]}
{[%emt 00:00:01]} Qf7 {[%clk 00:09:20]} {[%emt 00:00:06]} 18. Rae1 {[%clk
00:12:47]} {[%emt 00:00:48]} Rae8 {[%clk 00:09:29]} {[%emt 00:00:02]} 19. Re2
{[%clk 00:10:09]} {[%emt 00:02:48]} Nd7 {[%clk 00:08:01]} {[%emt 00:01:38]} 20.
Rfe1 {[%clk 00:10:05]} {[%emt 00:00:14]} e5 {[%clk 00:08:00]} {[%emt 00:00:11]}
21. dxe5 {[%clk 00:09:36]} {[%emt 00:00:39]} dxe5 {[%clk 00:07:56]} {[%emt
00:00:14]} 22. Nxe5 {[%clk 00:05:21]} {[%emt 00:04:25]} Nxe5 {[%clk 00:08:02]}
{[%emt 00:00:05]} 23. Bxe5 {[%clk 00:05:18]} {[%emt 00:00:13]} Bxe5 {[%clk
00:08:11]} {[%emt 00:00:01]} 24. Rxe5 {[%clk 00:05:08]} {[%emt 00:00:20]} Qxf2+
{[%clk 00:08:19]} {[%emt 00:00:01]} 25. Kh1 {[%clk 00:04:57]} {[%emt 00:00:21]}
Qxe1+ {[%clk 00:07:30]} {[%emt 00:01:00]} 26. Rxe1 {[%clk 00:04:59]} {[%emt
00:00:08]} Rxe1+ {[%clk 00:07:39]} 27. Kh2 {[%clk 00:05:07]} {[%emt 00:00:01]}
Rf7 {[%clk 00:07:25]} {[%emt 00:00:24]} 28. h4 {[%clk 00:04:10]} {[%emt
00:01:07]} h5 {[%clk 00:07:30]} {[%emt 00:00:04]} 29. b4 {[%clk 00:03:34]}
{[%emt 00:00:46]} Rfe7 {[%clk 00:07:17]} {[%emt 00:00:23]} 30. a4 {[%clk
00:01:23]} {[%emt 00:02:21]} R1e4 {[%clk 00:06:16]} {[%emt 00:01:11]} 31. g3
{[%clk 00:00:28]} {[%emt 00:01:06]} Re2+ {[%clk 00:05:57]} {[%emt 00:00:28]} 32.
Kh3 {[%clk 00:00:17]} {[%emt 00:00:21]} Re1 {[%clk 00:05:16]} {[%emt 00:00:51]}
33. Qf3 {[%clk 00:00:23]} {[%emt 00:00:05]} Kg8 {[%clk 00:05:02]} {[%emt
00:00:24]} 34. Qf6 {[%clk 00:00:22]} {[%emt 00:00:11]} Kh7 {[%clk 00:04:26]}
{[%emt 00:00:47]} 35. Qf2 {[%clk 00:00:31]} {[%emt 00:00:01]} Kg7 {[%clk
00:04:34]} {[%emt 00:00:02]} 36. b5 {[%clk 00:00:31]} {[%emt 00:00:10]} R7e2
{[%clk 00:04:00]} {[%emt 00:00:45]} 37. Qf3 {[%clk 00:00:33]} {[%emt 00:00:08]}
Re3 {[%clk 00:03:44]} {[%emt 00:00:25]} 38. Qf4 {[%clk 00:00:31]} {[%emt
00:00:13]} cxb5 {[%clk 00:03:25]} {[%emt 00:00:29]} 39. cxb5 {[%clk 00:00:37]}
{[%emt 00:00:04]} Re7 {[%clk 00:03:24]} {[%emt 00:00:11]} 40. Qd4+ {[%clk
00:00:43]} {[%emt 00:00:05]} Kh7 {[%clk 00:03:32]} {[%emt 00:00:02]} 41. Qf2
{[%clk 00:00:42]} {[%emt 00:00:10]} b6 {[%clk 00:02:44]} {[%emt 00:01:00]} 42.
Qf6 {[%clk 00:00:35]} {[%emt 00:00:16]} R1e6 {[%clk 00:02:03]} {[%emt
00:00:51]} 43. Qf8 {[%clk 00:00:43]} {[%emt 00:00:02]} Re4 {[%clk 00:02:08]}
{[%emt 00:00:04]} 44. Qf6 {[%clk 00:00:49]} {[%emt 00:00:05]} R4e6 {[%clk
00:01:56]} {[%emt 00:00:22]} 45. Qf8 {[%clk 00:00:58]} {[%emt 00:00:01]} Rd7
{[%clk 00:01:42]} {[%emt 00:00:23]} 46. Qf4 {[%clk 00:00:52]} {[%emt 00:00:16]}
Red6 {[%clk 00:01:17]} {[%emt 00:00:36]} 47. Qf8 {[%clk 00:00:48]} {[%emt
00:00:13]} Rd4 {[%clk 00:01:23]} {[%emt 00:00:04]} 48. Qe8 {[%clk 00:00:53]}
{[%emt 00:00:06]} Rg7 {[%clk 00:01:25]} {[%emt 00:00:08]} 49. Qe5 {[%clk
00:00:41]} {[%emt 00:00:22]} Rxa4 {[%clk 00:01:28]} {[%emt 00:00:06]} 50. Qb2
{[%clk 00:00:34]} {[%emt 00:00:17]} Rc4 {[%clk 00:01:33]} {[%emt 00:00:05]} 51.
Qb3 {[%clk 00:00:40]} {[%emt 00:00:04]} Rc5 {[%clk 00:01:39]} {[%emt 00:00:04]}
52. Qa4 {[%clk 00:00:45]} {[%emt 00:00:06]} Re7 {[%clk 00:01:38]} {[%emt
00:00:11]} 53. Qb3 {[%clk 00:00:44]} {[%emt 00:00:11]} Kg7 {[%clk 00:01:24]}
{[%emt 00:00:24]} 54. Qa3 {[%clk 00:00:46]} {[%emt 00:00:08]} Kf7 {[%clk
00:01:18]} {[%emt 00:00:17]} 55. Qf3+ {[%clk 00:00:51]} {[%emt 00:00:04]} Rf5
{[%clk 00:01:26]} {[%emt 00:00:02]} 56. Qb3+ {[%clk 00:00:58]} {[%emt
00:00:03]} Kf6 {[%clk 00:01:27]} {[%emt 00:00:09]} 57. Qc4 {[%clk 00:00:54]}
{[%emt 00:00:14]} Kg7 {[%clk 00:01:07]} {[%emt 00:00:30]} 58. Qd4+ {[%clk
00:01:01]} {[%emt 00:00:03]} Kh7 {[%clk 00:01:14]} {[%emt 00:00:03]} 59. Qd6
{[%clk 00:01:07]} {[%emt 00:00:04]} Ref7 {[%clk 00:01:19]} {[%emt 00:00:05]} 60.
Qb4 {[%clk 00:01:14]} {[%emt 00:00:03]} Rc5 {[%clk 00:01:27]} {[%emt 00:00:03]}
61. Qb3 {[%clk 00:01:22]} {[%emt 00:00:02]} Rff5 {[%clk 00:01:32]} {[%emt
00:00:04]} 62. Qd3 {[%clk 00:01:06]} {[%emt 00:00:25]} Rxb5 {[%clk 00:01:09]}
{[%emt 00:00:34]} 63. Qd7+ {[%clk 00:01:15]} {[%emt 00:00:01]} Kg8 {[%clk
00:01:18]} {[%emt 00:00:01]} 64. Qe8+ {[%clk 00:01:21]} {[%emt 00:00:04]} Kg7
{[%clk 00:01:27]} {[%emt 00:00:01]} 65. Qd7+ {[%clk 00:01:28]} {[%emt
00:00:04]} Kh6 {[%clk 00:01:28]} {[%emt 00:00:08]} 66. Qe8 {[%clk 00:01:31]}
{[%emt 00:00:06]} Kg7 {[%clk 00:01:27]} {[%emt 00:00:12]} 67. Qe7+ {[%clk
00:01:35]} {[%emt 00:00:06]} Rf7 {[%clk 00:01:32]} {[%emt 00:00:05]} 68. Qe8
{[%clk 00:01:40]} {[%emt 00:00:05]} Rbf5 {[%clk 00:01:39]} {[%emt 00:00:03]} 69.
Qd8 {[%clk 00:01:33]} {[%emt 00:00:17]} R5f6 {[%clk 00:01:46]} {[%emt
00:00:03]} 70. Qd4 {[%clk 00:01:39]} {[%emt 00:00:04]} a5 {[%clk 00:01:55]}
{[%emt 00:00:01]} 71. Qc4 {[%clk 00:01:43]} {[%emt 00:00:06]} Rb7 {[%clk
00:01:58]} {[%emt 00:00:06]} 72. Qb5 {[%clk 00:01:49]} {[%emt 00:00:04]} Rf5
{[%clk 00:02:02]} {[%emt 00:00:06]} 73. Qc6 {[%clk 00:01:58]} Rff7 {[%clk
00:02:03]} {[%emt 00:00:09]} 74. Qb5 {[%clk 00:02:05]} {[%emt 00:00:03]} Rfc7
{[%clk 00:02:12]} {[%emt 00:00:01]} 75. Qe5+ {[%clk 00:02:13]} {[%emt
00:00:02]} Kh7 {[%clk 00:02:20]} {[%emt 00:00:03]} 76. Qb5 {[%clk 00:02:20]}
{[%emt 00:00:03]} Rc5 {[%clk 00:02:27]} {[%emt 00:00:02]} 77. Qa6 {[%clk
00:02:09]} {[%emt 00:00:21]} Rcc7 {[%clk 00:02:14]} {[%emt 00:00:23]} 78. Qb5
{[%clk 00:02:18]} {[%emt 00:00:01]} Ra7 {[%clk 00:01:56]} {[%emt 00:00:29]} 79.
Qa4 {[%clk 00:02:12]} {[%emt 00:00:16]} b5 {[%clk 00:02:04]} {[%emt 00:00:01]}
80. Qxb5 {[%clk 00:02:10]} {[%emt 00:00:12]} a4 {[%clk 00:02:13]} {[%emt
00:00:01]} 81. g4 {[%clk 00:02:06]} {[%emt 00:00:13]} hxg4+ {[%clk 00:02:12]}
{[%emt 00:00:12]} 82. Kxg4 {[%clk 00:02:11]} {[%emt 00:00:05]} a3 {[%clk
00:02:20]} {[%emt 00:00:02]} 83. h5 {[%clk 00:02:16]} {[%emt 00:00:05]} Rg7
{[%clk 00:02:21]} {[%emt 00:00:09]} 84. h6 {[%clk 00:02:06]} {[%emt 00:00:20]}
Rgf7 {[%clk 00:02:30]} 85. Qb1 {[%clk 00:01:24]} {[%emt 00:00:51]} a2 {[%clk
00:02:39]} {[%emt 00:00:01]} 86. Qa1 {[%clk 00:01:34]} Rfb7 {[%clk 00:02:46]}
{[%emt 00:00:03]} 0-1

[Event "Snabb-SM för veteraner, 65+ 2019"]
[Site "Schackcentrum, Vegagatan 20, Gothenburg, Sweden"]
[Date "2019.10.06"]
[Round "8.8"]
[White "Alfven, Jorgen"]
[Black "Svensson, Soren"]
[Result "1-0"]
[TimeControl "15 minutes + 10 seconds per move from move one"]
[WhiteFideId "1715950"]
[BlackFideId "1714937"]
[WhiteElo "1791"]
[BlackElo "1845"]

1. d4 {[%clk 00:15:17]} {[%emt 00:00:03]} d5 {[%clk 00:15:13]} {[%emt
00:00:08]} 2. Nf3 {[%clk 00:15:22]} {[%emt 00:00:04]} Nf6 {[%clk 00:15:19]}
{[%emt 00:00:05]} 3. g3 {[%clk 00:15:23]} {[%emt 00:00:10]} e6 {[%clk
00:15:06]} {[%emt 00:00:23]} 4. Bg2 {[%clk 00:15:29]} {[%emt 00:00:03]} c5
{[%clk 00:15:09]} {[%emt 00:00:07]} 5. c3 {[%clk 00:15:27]} {[%emt 00:00:12]}
Nc6 {[%clk 00:15:13]} {[%emt 00:00:06]} 6. O-O {[%clk 00:15:33]} {[%emt
00:00:04]} Bd6 {[%clk 00:15:13]} {[%emt 00:00:10]} 7. Nbd2 {[%clk 00:14:45]}
{[%emt 00:00:58]} O-O {[%clk 00:14:52]} {[%emt 00:00:32]} 8. e3 {[%clk
00:14:20]} {[%emt 00:00:35]} b6 {[%clk 00:14:51]} {[%emt 00:00:11]} 9. Re1
{[%clk 00:14:07]} {[%emt 00:00:22]} Bb7 {[%clk 00:14:54]} {[%emt 00:00:07]} 10.
a3 {[%clk 00:12:42]} {[%emt 00:01:36]} Qc7 {[%clk 00:14:16]} {[%emt 00:00:48]}
11. dxc5 {[%emt 00:00:45]} bxc5 {[%clk 00:14:09]} {[%emt 00:00:09]} 12. c4
{[%clk 00:11:53]} {[%emt 00:00:32]} Rfe8 {[%clk 00:12:24]} {[%emt 00:01:55]} 13.
Qc2 {[%clk 00:11:26]} {[%emt 00:00:37]} Rac8 {[%clk 00:10:47]} {[%emt
00:01:47]} 14. b3 {[%clk 00:11:26]} {[%emt 00:00:10]} d4 {[%clk 00:09:07]}
{[%emt 00:01:50]} 15. exd4 {[%clk 00:11:25]} {[%emt 00:00:11]} cxd4 {[%clk
00:09:10]} {[%emt 00:00:07]} 16. Bb2 {[%clk 00:10:13]} {[%emt 00:01:21]} e5
{[%clk 00:09:13]} {[%emt 00:00:08]} 17. Ng5 {[%clk 00:10:13]} {[%emt 00:00:09]}
h6 {[%clk 00:08:35]} {[%emt 00:00:49]} 18. Nge4 {[%clk 00:10:21]} {[%emt
00:00:02]} Nxe4 {[%clk 00:08:29]} {[%emt 00:00:16]} 19. Nxe4 {[%clk 00:10:28]}
{[%emt 00:00:02]} Bf8 {[%clk 00:08:20]} {[%emt 00:00:19]} 20. Bh3 {[%clk
00:09:16]} {[%emt 00:01:22]} Rcd8 {[%clk 00:08:16]} {[%emt 00:00:14]} 21. Qd3
{[%clk 00:09:22]} {[%emt 00:00:04]} Ne7 {[%clk 00:08:01]} {[%emt 00:00:25]} 22.
Nd2 {[%clk 00:08:04]} {[%emt 00:01:28]} Qc6 {[%clk 00:06:50]} {[%emt 00:01:20]}
23. f3 {[%clk 00:08:03]} {[%emt 00:00:11]} Qc7 {[%clk 00:06:41]} {[%emt
00:00:20]} 24. Re2 {[%clk 00:07:44]} {[%emt 00:00:29]} g6 {[%clk 00:06:31]}
{[%emt 00:00:19]} 25. Rae1 {[%clk 00:07:49]} {[%emt 00:00:05]} Bg7 {[%clk
00:06:35]} {[%emt 00:00:07]} 26. b4 {[%clk 00:06:50]} {[%emt 00:01:09]} f5
{[%clk 00:06:01]} {[%emt 00:00:44]} 27. Bg2 {[%clk 00:06:36]} {[%emt 00:00:24]}
a5 {[%clk 00:05:45]} {[%emt 00:00:26]} 28. b5 {[%clk 00:06:27]} {[%emt
00:00:20]} Bc8 {[%clk 00:05:09]} {[%emt 00:00:45]} 29. a4 {[%clk 00:06:32]}
{[%emt 00:00:06]} Be6 {[%clk 00:05:10]} {[%emt 00:00:09]} 30. Ba3 {[%clk
00:06:13]} {[%emt 00:00:29]} Rc8 {[%clk 00:04:54]} {[%emt 00:00:26]} 31. Rc1
{[%clk 00:06:06]} {[%emt 00:00:17]} g5 {[%clk 00:03:56]} {[%emt 00:01:08]} 32.
Bxe7 {[%clk 00:04:44]} {[%emt 00:01:32]} Rxe7 {[%clk 00:03:25]} {[%emt
00:00:42]} 33. Ree1 {[%clk 00:03:38]} {[%emt 00:01:16]} Ree8 {[%clk 00:03:06]}
{[%emt 00:00:29]} 34. Kh1 {[%clk 00:03:13]} {[%emt 00:00:35]} Qf7 {[%clk
00:03:12]} {[%emt 00:00:03]} 35. c5 {[%clk 00:02:54]} {[%emt 00:00:29]} Bd5
{[%clk 00:03:07]} {[%emt 00:00:16]} 36. Nc4 {[%clk 00:02:39]} {[%emt 00:00:25]}
Bxc4 {[%clk 00:02:18]} {[%emt 00:00:59]} 37. Qxc4 {[%clk 00:02:38]} {[%emt
00:00:11]} Qxc4 {[%clk 00:00:59]} {[%emt 00:01:28]} 38. Rxc4 {[%clk 00:02:46]}
{[%emt 00:00:01]} h5 {[%clk 00:00:45]} {[%emt 00:00:25]} 39. c6 {[%clk
00:02:42]} {[%emt 00:00:14]} Re7 {[%clk 00:00:23]} {[%emt 00:00:32]} 40. Rec1
{[%clk 00:02:07]} {[%emt 00:00:45]} e4 {[%clk 00:00:25]} {[%emt 00:00:08]} 41.
fxe4 {[%clk 00:02:07]} {[%emt 00:00:10]} fxe4 {[%clk 00:00:33]} {[%emt
00:00:02]} 42. b6 {[%clk 00:01:53]} {[%emt 00:00:24]} e3 {[%clk 00:00:38]}
{[%emt 00:00:05]} 43. Bd5+ {[%clk 00:01:58]} {[%emt 00:00:05]} Kh8 {[%clk
00:00:44]} {[%emt 00:00:03]} 44. b7 {[%clk 00:02:02]} {[%emt 00:00:06]} Rf8
{[%clk 00:00:46]} {[%emt 00:00:08]} 45. c7 {[%clk 00:02:01]} {[%emt 00:00:11]}
e2 {[%clk 00:00:25]} {[%emt 00:00:32]} 46. c8=Q {[%clk 00:02:08]} {[%emt
00:00:03]} e1=Q+ {[%clk 00:00:24]} {[%emt 00:00:10]} 47. Rxe1 {[%clk 00:02:09]}
{[%emt 00:00:09]} Rxe1+ {[%clk 00:00:32]} {[%emt 00:00:02]} 48. Kg2 {[%clk
00:02:18]} {[%emt 00:00:02]} Re2+ {[%clk 00:00:35]} {[%emt 00:00:08]} 49. Kh3
{[%clk 00:02:07]} {[%emt 00:00:20]} g4+ {[%clk 00:00:15]} {[%emt 00:00:30]} 50.
Kh4 {[%clk 00:02:16]} Rxh2+ {[%clk 00:00:15]} {[%emt 00:00:10]} 51. Kg5 {[%clk
00:02:18]} {[%emt 00:00:08]} Bf6+ {[%clk 00:00:11]} {[%emt 00:00:14]} 52. Kg6
{[%clk 00:02:22]} {[%emt 00:00:05]} 1-0